bitfinex-derivatives/quotes_SOLF0:USTF0_20241017
["timestamp","ask_amount","ask_price","bid_price","bid_amount"]
[1729182865162,21.58,150.88,150.78,15.92]
[1729182865360,3.3147,150.85,150.78,15.92]
[1729182865664,21.58,150.88,150.76,6.18687218]
[1729182865665,15.92,150.86,150.76,27.76687218]
[1729182865861,3.315,150.84,150.79,3.3159]
[1729182866065,8.975,150.84,150.76,27.76687218]
[1729182867765,3.3155,150.82,150.76,27.76687218]
[1729182867964,3.3155,150.82,150.78,3.316]
[1729182868165,5.66,150.84,150.78,3.316]
[1729182868363,3.3153,150.83,150.78,3.316]
[1729182868767,3.3153,150.83,150.79,3.316]
[1729182870268,21.58,150.84,150.76,6.18687218]
[1729182870460,21.58,150.84,150.76,9.50337218]
[1729182870656,10.26778754,150.95,150.82,15.92]
[1729182870862,10.26778754,150.95,150.84,3.3148]
[1729182870863,3.314,150.89,150.84,3.3148]
[1729182871364,3.314,150.89,150.82,3.3151]
[1729182871365,3.3143,150.87,150.82,3.3151]
[1729182872366,3.3143,150.87,150.83,3.3151]
[1729182872567,3.3131,150.92,150.83,15.92]
[1729182872865,3.3131,150.92,150.84,2.7461]
[1729182873070,3.3131,150.92,150.87,3.3142]
[1729182873360,3.3131,150.92,150.84,2.7461]
[1729182873566,3.313,150.93,150.88,3.314]
[1729182873760,15.92,150.94,150.84,2.7461]
[1729182873959,21.58,150.94,150.84,6.12596321]
[1729182874166,21.58,150.94,150.84,2.7461]
[1729182874364,3.3132,150.92,150.87,3.3141]
[1729182874561,3.3132,150.92,150.87,6.64886963]
[1729182874863,3.3132,150.92,150.87,3.3141]
[1729182875668,19.2338,150.9,150.85,3.3145]
[1729182875866,19.2338,150.9,150.82,5.66]
[1729182875867,21.58,150.9,150.82,5.66]
[1729182876068,15.92,150.89,150.82,5.66]
[1729182876265,3.3141,150.88,150.84,3.3148]
[1729182876657,15.92,150.89,150.82,5.66]
[1729182876861,15.92,150.86,150.81,3.36725223]
[1729182877160,15.92,150.86,150.79,9.866]
[1729182877563,15.92,150.86,150.79,13.16694833]
[1729182877762,15.92,150.84,150.79,2.7793]
[1729182877967,15.92,150.82,150.74,1.4267]
[1729182878376,3.3156,150.81,150.77,3.3163]
[1729182878562,21.58,150.82,150.77,3.32449101]
[1729182878759,21.58,150.82,150.74,1.4267]
[1729182879166,5.66,150.82,150.74,17.3467]
[1729182879367,5.66,150.82,150.77,3.3163]
[1729182880158,5.66,150.82,150.76,3.30326944]
[1729182880363,5.66,150.82,150.78,3.3161]
[1729182881272,8.9755,150.82,150.78,3.3161]
[1729182881570,5.66,150.82,150.77,3.24986733]
[1729182881868,5.66,150.82,150.74,23.0067]
[1729182882063,5.66,150.82,150.79,3.3159]
[1729182882271,5.66,150.82,150.77,3.32581586]
[1729182882470,5.66,150.82,150.74,7.0867]
[1729182883669,8.9755,150.82,150.77,3.3162]
[1729182883866,9.2155,150.82,150.74,7.0867]
[1729182885166,15.92,150.83,150.74,7.0867]
[1729182885474,5.9,150.85,150.77,15.92]
[1729182885666,15.92,150.89,150.79,15.92]
[1729182885875,15.92,150.91,150.81,15.92]
[1729182886067,15.92,150.91,150.88,3.3139]
[1729182886265,15.92,150.91,150.82,7.2383]
[1729182887572,15.92,150.91,150.88,3.3139]
[1729182888075,15.92,150.91,150.87,3.3141]
[1729182888675,19.2334,150.91,150.87,3.3141]
[1729182889079,15.92,150.91,150.82,7.2383]
[1729182889872,31.36,150.92,150.82,7.2383]
[1729182890084,25.46,150.92,150.82,7.2383]
[1729182890274,5.9,150.92,150.82,32.6983]
[1729182890470,25.46,150.95,150.82,32.6983]
[1729182890776,5.9,150.95,150.85,25.46]
[1729182890977,31.36,150.95,150.86,5.9]
[1729182891379,3.313,150.93,150.89,3.3136]
[1729182891882,3.3134,150.91,150.87,3.3141]
[1729182892082,25.46,150.9,150.82,7.2383]
[1729182892779,25.46,150.9,150.78,2.7891]
[1729182893078,25.46,150.9,150.81,5.9]
[1729182893279,3.314,150.88,150.84,3.3147]
[1729182893479,25.46,150.9,150.84,3.3147]
[1729182893683,25.46,150.9,150.81,5.9]
[1729182893980,3.3142,150.87,150.81,5.9]
[1729182894483,25.46,150.9,150.81,5.9]
[1729182894981,25.46,150.87,150.81,5.9]
[1729182895582,3.3144,150.86,150.82,3.3153]
[1729182895786,31.36,150.87,150.78,4.2234]
[1729182896279,3.3149,150.84,150.78,4.2234]
[1729182896679,3.3149,150.84,150.81,3.3155]
[1729182896876,31.36,150.87,150.78,4.2234]
[1729182897082,25.46,150.85,150.78,2.7891]
[1729182897478,3.3154,150.82,150.78,6.1052]
[1729182898174,25.46,150.85,150.78,6.1053]
[1729182899187,3.3154,150.82,150.78,6.1053]
[1729182899487,3.3154,150.82,150.79,3.316]
[1729182900187,25.46,150.85,150.76,3.37964827]
[1729182900486,5.9,150.83,150.76,3.37964827]
[1729182900996,3.3156,150.81,150.78,3.316]
[1729182901192,25.46,150.82,150.76,3.37964827]
[1729182901395,25.46,150.82,150.73,2.7719]
[1729182901585,25.46,150.82,150.76,3.3165]
[1729182902096,25.46,150.82,150.73,2.7719]
[1729182903193,25.46,150.82,150.7,5.9]
[1729182903384,25.46,150.82,150.7,8.6969]
[1729182903583,5.9,150.83,150.7,8.6969]
[1729182903584,25.46,150.8,150.7,8.6969]
[1729182903800,5.9,150.79,150.7,8.6969]
[1729182904693,3.3166,150.77,150.72,3.3174]
[1729182904997,5.9,150.79,150.7,8.6969]
[1729182905197,3.3168,150.76,150.72,3.3174]
[1729182905491,25.46,150.77,150.7,2.7969]
[1729182905686,25.46,150.77,150.71,3.3176]
[1729182905687,3.317,150.75,150.71,3.3176]
[1729182905885,3.317,150.75,150.7,2.7969]
[1729182906497,3.3171,150.74,150.71,3.3176]
[1729182906699,25.46,150.77,150.7,2.7969]
[1729182907291,25.46,150.77,150.72,3.3174]
[1729182908298,3.3169,150.75,150.72,3.3174]
[1729182908801,25.46,150.77,150.7,2.7969]
[1729182909094,5.9,150.81,150.71,5.9]
[1729182909395,25.46,150.83,150.72,25.46]
[1729182910196,3.3155,150.82,150.78,3.3161]
[1729182910400,25.46,150.81,150.72,5.9]
[1729182910695,3.3162,150.79,150.75,3.3168]
[1729182911993,5.9,150.81,150.72,21.83]
[1729182912199,15.93,150.82,150.72,21.83]
[1729182912393,15.93,150.84,150.75,15.93]
[1729182912696,15.93,150.84,150.76,7.3394]
[1729182912894,15.93,150.86,150.76,27.94620461]
[1729182913099,15.93,150.86,150.77,1.4751]
[1729182913300,15.93,150.84,150.76,4.71480461]
[1729182913799,5.82,150.83,150.76,4.71480461]
[1729182914197,15.93,150.86,150.76,20.64480461]
[1729182914394,71.6,150.92,150.8,15.93]
[1729182914395,21.75,150.88,150.8,15.93]
[1729182914595,15.93,150.9,150.81,8.6965]
[1729182914796,15.93,150.9,150.88,3.3139]
[1729182915095,15.93,150.9,150.81,8.6965]
[1729182915995,19.2437,150.9,150.86,3.3143]
[1729182916993,19.2437,150.9,150.81,8.6965]
[1729182916994,15.93,150.9,150.87,3.3142]
[1729182917606,15.93,150.9,150.81,8.6965]
[1729182918196,15.93,150.9,150.87,3.3142]
[1729182918392,15.93,150.92,150.84,3.38835852]
[1729182918602,5.82,150.93,150.85,1.4099]
[1729182918805,5.82,150.93,150.85,10.59604956]
[1729182919509,9.1331,150.93,150.85,10.59604956]
[1729182920296,9.1331,150.93,150.89,3.3136]
[1729182920696,19.2433,150.92,150.85,10.59604956]
[1729182921105,19.2433,150.92,150.88,3.3139]
[1729182921310,15.93,150.92,150.85,10.59604956]
[1729182921616,3.3135,150.91,150.87,3.3142]
[1729182922002,3.3135,150.91,150.85,4.77604956]
[1729182922003,15.93,150.92,150.85,4.77604956]
[1729182922204,19.2432,150.92,150.88,3.314]
[1729182922898,19.2432,150.92,150.87,3.3141]
[1729182922899,3.3134,150.91,150.87,3.3141]
[1729182923510,15.93,150.92,150.85,4.77604956]
[1729182923711,19.2432,150.92,150.88,3.3139]
[1729182923909,15.93,150.92,150.85,1.4099]
[1729182925011,3.3134,150.91,150.87,3.3142]
[1729182926218,3.3134,150.91,150.85,1.4099]
[1729182926714,3.3136,150.9,150.85,1.4099]
[1729182927410,3.3136,150.9,150.87,3.3141]
[1729182928619,15.93,150.92,150.87,3.3141]
[1729182928920,3.3134,150.91,150.87,3.3141]
[1729182929109,3.3134,150.91,150.88,3.314]
[1729182929311,3.3137,150.9,150.85,1.4099]
[1729182929821,3.3134,150.91,150.85,1.4099]
[1729182930719,19.2432,150.92,150.85,1.4099]
[1729182931015,19.2432,150.92,150.88,3.3139]
[1729182931216,19.2432,150.92,150.85,1.4099]
[1729182931518,15.93,150.98,150.9,15.93]
[1729182931717,5.82,150.99,150.92,15.93]
[1729182932019,9.1318,150.99,150.92,15.93]
[1729182932214,9.1318,150.99,150.92,19.210297]
[1729182932411,5.82,151.01,150.94,15.93]
[1729182932806,15.93,151.05,150.94,15.93]
[1729182932807,5.82,151.02,150.94,15.93]
[1729182933018,3.3107,151.03,150.98,3.3117]
[1729182933214,9.1307,151.03,150.98,3.3117]
[1729182933415,5.82,151.03,150.98,3.3117]
[1729182933611,3.3112,151.01,150.98,3.3117]
[1729182933817,5.82,151.03,150.99,3.3116]
[1729182934214,9.1309,151.03,150.99,3.3116]
[1729182934629,3.3109,151.02,150.99,3.3115]
[1729182935220,5.82,151.03,150.95,1.4722]
[1729182935422,5.82,151.03,151.01,3.3111]
[1729182935823,5.82,151.03,150.95,2.955]
[1729182936023,15.93,151.05,150.95,2.955]
[1729182936324,19.2404,151.05,151.02,3.3109]
[1729182936823,3.3108,151.03,151.0,3.3112]
[1729182937018,15.93,151.05,150.95,2.955]
[1729182937415,3.3106,151.04,150.95,2.955]
[1729182938123,3.3106,151.04,151.0,3.3113]
[1729182938826,3.3106,151.04,150.95,2.955]
[1729182939023,9.1302,151.06,150.97,15.93]
[1729182939224,9.1302,151.06,150.98,5.82]
[1729182940028,9.1302,151.06,151.02,3.3108]
[1729182940524,3.3102,151.06,151.02,3.3108]
[1729182940727,3.3101,151.06,151.02,3.3108]
[1729182940927,21.75,151.07,150.98,5.82]
[1729182941728,3.3102,151.06,150.98,5.82]
[1729182942132,3.3102,151.06,150.99,1.4378]
[1729182942322,3.3102,151.06,151.02,3.3108]
[1729182942829,15.93,151.05,150.99,1.4378]
[1729182943121,15.93,151.05,150.99,4.7492]
[1729182943323,15.93,151.03,150.99,3.3114]
[1729182944825,15.93,151.01,150.97,3.3119]
[1729182945032,19.2414,151.01,150.97,3.3119]
[1729182945221,15.93,151.01,150.95,8.715]
[1729182945422,15.93,151.01,150.98,3.3116]
[1729182945829,15.93,151.01,150.95,1.4722]
[1729182946126,5.76,151.03,150.95,1.4722]
[1729182946333,15.93,151.01,150.95,1.4722]
[1729182947438,15.93,150.99,150.95,1.4722]
[1729182947623,15.93,150.99,150.93,1.4457]
[1729182947819,3.312,150.98,150.93,1.4457]
[1729182948029,15.93,150.97,150.93,1.4457]
[1729182948524,15.93,151.05,150.96,15.93]
[1729182948935,3.3107,151.04,150.96,15.93]
[1729182949137,3.3107,151.04,150.97,1.3447]
[1729182949435,15.93,151.05,150.97,1.3447]
[1729182949730,5.76,151.07,150.93,7.2057]
[1729182949731,15.93,151.01,150.93,7.2057]
[1729182950041,3.3115,151.0,150.96,3.3122]
[1729182950227,15.93,151.01,150.96,3.3122]
[1729182950538,15.93,150.99,150.93,7.2057]
[1729182950740,15.93,150.97,150.92,1.3447]
[1729182951435,15.93,150.97,150.94,3.3126]
[1729182951646,9.072,150.98,150.94,3.3126]
[1729182952327,5.76,150.98,150.95,3.3124]
[1729182953434,5.76,150.98,150.92,4.65771348]
[1729182954141,5.76,150.98,150.93,1.3663]
[1729182955034,5.76,150.98,150.96,3.3121]
[1729182955225,3.3115,151.0,150.93,1.3663]
[1729182955624,3.3115,151.0,150.96,3.3121]
[1729182955927,25.0013,151.01,150.93,7.1263]
[1729182956127,25.0013,151.01,150.98,3.3117]
[1729182956333,9.0713,151.01,150.98,3.3117]
[1729182956549,3.3113,151.01,150.98,3.3117]
[1729182956733,9.0708,151.03,151.0,3.3113]
[1729182957133,5.76,151.03,150.95,15.93]
[1729182957329,3.3104,151.05,151.02,3.3109]
[1729182957641,5.76,151.07,151.0,3.37485093]
[1729182957832,21.69,151.08,151.0,1.3702]
[1729182958038,21.69,151.08,151.04,3.3104]
[1729182958235,15.93,151.06,151.0,2.7805]
[1729182958429,3.3105,151.05,151.01,3.311]
[1729182958634,15.93,151.06,151.0,1.4103]
[1729182959939,15.93,151.04,150.97,1.4566]
[1729182960153,19.31035631,151.11,150.87,15.93]
[1729182960154,15.93,151.0,150.93,1.4103]
[1729182960449,15.93,150.98,150.93,1.4103]
[1729182961033,15.93,150.98,150.9,5.76]
[1729182961241,15.93,150.96,150.89,1.4236]
[1729182961633,3.3125,150.95,150.91,3.3132]
[1729182962041,21.69,150.96,150.89,1.4236]
[1729182962246,25.45,150.95,150.89,1.4236]
[1729182962752,3.3131,150.93,150.89,4.7373]
[1729182963839,3.3131,150.93,150.89,3.3137]
[1729182964664,3.3129,150.94,150.89,3.3137]
[1729182964945,25.45,150.95,150.89,3.3137]
[1729182965448,3.3131,150.93,150.89,3.3137]
[1729182968047,25.45,150.95,150.88,1.4566]
[1729182968250,5.76,150.96,150.88,1.4566]
[1729182968643,5.76,150.96,150.93,3.3129]
[1729182969345,5.78,151.0,150.92,3.36028632]
[1729182969549,5.78,151.0,150.93,1.3868]
[1729182969846,9.0916,151.0,150.96,3.3121]
[1729182970247,5.78,151.0,150.96,3.3121]
[1729182971654,3.3116,150.99,150.96,3.3121]
[1729182971957,5.78,151.0,150.93,10.49560434]
[1729182972254,3.38035631,151.11,150.94,25.45]
[1729182972553,3.3104,151.05,150.94,25.45]
[1729182972752,25.45,151.07,150.97,25.45]
[1729182973050,5.58,151.06,150.98,1.3363]
[1729182973255,8.8897,151.08,150.98,1.3363]
[1729182973453,3.31,151.07,150.98,1.3363]
[1729182973647,5.58,151.08,150.98,1.3363]
[1729182974545,71.56,151.13,150.99,25.45]
[1729182974546,25.45,151.12,150.99,25.45]
[1729182974746,5.58,151.11,150.99,25.45]
[1729182974946,25.45,151.12,151.0,1.3644]
[1729182975157,5.58,151.11,151.01,5.58]
[1729182975347,5.58,151.11,151.01,8.92503311]
[1729182975658,3.3094,151.1,151.05,3.3101]
[1729182975859,3.3094,151.1,151.02,1.4426]
[1729182976545,3.3095,151.09,151.05,3.3101]
[1729182977346,3.3095,151.09,151.04,3.3105]
[1729182977552,3.3093,151.1,151.02,1.4426]
[1729182977855,5.58,151.11,151.02,1.4426]
[1729182978557,25.45,151.09,151.02,1.4426]
[1729182979152,25.45,151.07,151.0,6.9444]
[1729182979360,31.03,151.07,151.0,6.9444]
[1729182979554,3.3104,151.05,151.01,3.311]
[1729182979757,25.45,151.04,150.98,1.3556]
[1729182980152,3.3112,151.01,150.97,3.3119]
[1729182980351,5.58,151.03,150.94,4.1466]
[1729182980352,25.45,151.02,150.94,4.1466]
[1729182980551,5.58,151.03,150.94,4.1466]
[1729182980753,8.8905,151.04,150.94,29.5966]
[1729182980953,5.58,151.04,150.94,29.5966]
[1729182981165,5.58,151.04,151.02,3.3107]
[1729182981548,3.3102,151.06,151.02,3.3107]
[1729182981758,5.58,151.07,151.01,3.32516393]
[1729182982060,5.58,151.07,150.97,31.03]
[1729182982455,5.58,151.07,151.0,3.3114]
[1729182982656,25.45,151.09,151.01,3.25693846]
[1729182982954,5.58,151.08,151.02,3.36126382]
[1729182983150,8.8898,151.08,151.04,3.3103]
[1729182983349,5.58,151.08,151.04,3.3103]
[1729182983655,5.58,151.08,150.97,31.03]
[1729182984063,25.45,151.06,150.97,5.58]
[1729182984272,25.45,151.06,150.94,29.5966]
[1729182984554,25.45,151.04,150.95,5.58]
[1729182984762,3.3111,151.02,150.98,3.3117]
[1729182984953,5.58,151.03,150.95,5.58]
[1729182985468,3.3113,151.01,150.97,3.312]
[1729182986663,3.3111,151.02,150.98,3.3117]
[1729182987364,8.8909,151.03,150.99,3.3114]
[1729182988669,5.58,151.03,150.99,3.3114]
[1729182988867,3.311,151.02,150.99,3.3114]
[1729182990273,5.58,151.03,150.97,3.3119]
[1729182990274,3.3115,151.0,150.97,3.3119]
[1729182990460,3.3115,151.0,150.94,4.1466]
[1729182990871,31.02,151.03,150.94,2.7221]
[1729182991073,3.3118,150.99,150.94,2.7221]
[1729182991365,3.3118,150.99,150.96,3.3122]
[1729182991873,25.44,151.01,150.93,3.32880434]
[1729182992064,25.44,151.01,150.91,5.58]
[1729182992374,3.3117,150.99,150.95,3.3123]
[1729182992570,3.3117,150.99,150.94,3.33852268]
[1729182992870,3.3117,150.99,150.91,5.58]
[1729182993268,3.3116,151.0,150.91,5.58]
[1729182993577,3.3116,151.0,150.96,3.3121]
[1729182993765,3.3117,150.99,150.96,3.3121]
[1729182994868,31.02,151.03,150.94,3.2848529]
[1729182995173,31.02,151.03,150.91,31.02]
[1729182995663,25.44,151.06,150.94,25.44]
[1729182995864,5.58,151.05,150.95,5.58]
[1729182996272,3.3107,151.03,150.96,1.4335]
[1729182996774,3.3107,151.03,150.99,3.3114]
[1729182997569,25.44,151.03,150.94,8.83801749]
[1729182997871,3.3113,151.01,150.95,2.8842]
[1729182998461,3.3113,151.01,150.96,3.3121]
[1729182998673,3.3113,151.01,150.95,2.8842]
[1729182999065,3.3113,151.01,150.97,3.3118]
[1729182999568,3.3113,151.01,150.98,3.3118]
[1729182999766,25.44,151.03,150.95,2.8842]
[1729182999972,3.3106,151.04,150.95,2.8842]
[1729183000162,5.58,151.06,151.01,3.311]
[1729183000567,3.3106,151.04,151.01,3.311]
[1729183000965,3.3106,151.04,151.0,3.3113]
[1729183001368,3.3106,151.04,150.97,1.46]
[1729183001668,5.58,151.06,151.0,3.3112]
[1729183001869,3.3108,151.03,151.0,3.3112]
[1729183002068,3.3108,151.03,150.97,1.46]
[1729183002672,28.7506,151.04,150.97,4.7719]
[1729183002877,25.44,151.01,150.95,2.8842]
[1729183003174,25.44,151.01,150.96,3.3122]
[1729183003175,3.3117,150.99,150.96,3.3122]
[1729183003373,30.9,151.01,150.95,2.8842]
[1729183004474,9.90352094,151.11,150.95,8.3442]
[1729183004666,25.44,151.08,150.96,1.4169]
[1729183004868,3.3106,151.04,151.0,3.3112]
[1729183005068,3.3106,151.04,150.96,1.4169]
[1729183005274,5.46,151.05,150.96,1.4169]
[1729183005478,8.7704,151.05,151.01,3.311]
[1729183005779,5.46,151.05,150.96,1.4169]
[1729183006171,3.3106,151.04,151.0,3.3112]
[1729183006581,3.3106,151.04,150.96,1.4169]
[1729183006774,5.46,151.05,150.96,1.4169]
[1729183006971,25.44,151.03,150.96,1.4169]
[1729183007170,25.44,151.03,150.95,2.8842]
[1729183007370,3.3112,151.01,150.96,3.3121]
[1729183007574,5.46,151.0,150.96,3.3121]
[1729183008179,8.7708,151.03,150.95,2.8842]
[1729183008486,5.46,151.03,150.95,4.295]
[1729183008975,3.3111,151.02,150.99,3.3115]
[1729183009279,5.46,151.03,150.95,4.295]
[1729183009580,5.46,151.03,151.01,3.311]
[1729183011168,5.46,151.03,151.0,3.3113]
[1729183015486,5.46,151.03,150.95,4.295]
[1729183017478,8.7708,151.03,151.0,3.3113]
[1729183017786,8.7708,151.03,150.95,4.295]
[1729183017981,8.7708,151.03,150.99,3.3115]
[1729183020290,8.7708,151.03,150.95,4.295]
[1729183021184,3.311,151.02,150.99,3.3115]
[1729183021787,5.46,151.03,150.95,4.295]
[1729183021987,15.91,150.98,150.89,15.91]
[1729183022188,21.37,150.98,150.89,15.91]
[1729183022487,5.46,150.98,150.96,3.3122]
[1729183022890,5.46,150.98,150.94,3.26840257]
[1729183022891,15.91,151.02,150.94,3.26840257]
[1729183023191,15.91,151.02,150.93,21.37]
[1729183023192,5.46,151.02,150.99,3.3114]
[1729183023687,5.46,151.02,150.97,15.91]
[1729183024582,5.46,151.02,151.0,3.3112]
[1729183024787,5.46,151.02,150.95,2.8124]
[1729183026394,8.771,151.02,150.98,3.3117]
[1729183028705,8.771,151.02,150.96,3.3122]
[1729183028706,3.3116,150.99,150.96,3.3122]
[1729183028995,3.3116,150.99,150.95,2.8124]
[1729183029187,3.3116,150.99,150.96,3.3122]
[1729183029388,3.3115,151.0,150.96,3.3122]
[1729183030285,3.3115,151.0,150.97,3.312]
[1729183032103,3.3115,151.0,150.95,2.8124]
[1729183032796,3.3115,151.0,150.97,3.3119]
[1729183035602,30.91,151.02,150.95,2.8124]
[1729183035792,3.3113,151.01,150.98,3.3116]
[1729183036098,25.45,151.05,150.95,2.8124]
[1729183036290,5.34,151.08,150.97,25.45]
[1729183036488,25.45,151.09,150.98,1.3909]
[1729183036691,5.34,151.08,151.01,3.3112]
[1729183036995,28.7596,151.09,151.02,1.3452]
[1729183036996,25.45,151.09,151.02,1.3452]
[1729183037199,30.79,151.09,151.03,3.34768782]
[1729183037395,3.3097,151.08,151.05,3.3102]
[1729183039901,8.6497,151.08,151.05,3.3102]
[1729183041306,3.3097,151.08,151.05,3.3102]
[1729183041502,8.6497,151.08,151.05,3.3102]
[1729183042697,5.34,151.08,151.06,3.3099]
[1729183043198,8.6496,151.08,151.06,3.3099]
[1729183043702,5.34,151.08,151.06,3.3099]
[1729183044196,25.45,151.12,151.04,3.25453016]
[1729183044397,96.99,151.16,151.03,25.45]
[1729183044398,5.34,151.13,151.03,25.45]
[1729183044599,5.34,151.13,151.04,6.7857]
[1729183044806,3.3088,151.12,151.09,3.3093]
[1729183045109,5.34,151.13,151.04,6.7857]
[1729183045305,8.6487,151.13,151.04,6.7857]
[1729183045609,5.34,151.13,151.09,3.3093]
[1729183046201,5.34,151.13,151.06,3.3099]
[1729183046405,5.34,151.13,151.04,6.7857]
[1729183046907,3.3088,151.12,151.04,6.7857]
[1729183047110,96.99,151.16,151.04,6.7857]
[1729183047304,5.34,151.15,151.04,6.7857]
[1729183047503,25.45,151.16,151.04,6.7857]
[1729183047705,5.34,151.15,151.05,25.45]
[1729183047908,5.34,151.15,151.06,15.9]
[1729183048110,5.34,151.15,151.1,3.3091]
[1729183048298,5.34,151.15,151.07,1.433]
[1729183048499,19.2091,151.11,151.07,1.433]
[1729183048702,3.3091,151.11,151.07,1.433]
[1729183049409,3.3088,151.12,151.07,1.433]
[1729183049610,15.9,151.13,151.07,1.433]
[1729183049810,21.24,151.15,151.07,1.433]
[1729183050108,3.3087,151.13,151.09,3.3093]
[1729183051208,3.3084,151.14,151.11,3.3088]
[1729183052213,5.34,151.15,151.08,1.3483]
[1729183052515,8.6481,151.15,151.12,3.3087]
[1729183052901,8.6481,151.15,151.08,1.3483]
[1729183052902,15.9,151.13,151.08,1.3483]
[1729183053821,15.9,151.09,151.04,1.4457]
[1729183054315,3.3093,151.1,151.07,3.3097]
[1729183055412,21.24,151.11,151.04,4.3067]
[1729183056113,5.34,151.11,151.04,20.2067]
[1729183056317,15.9,151.14,151.04,20.2067]
[1729183056617,5.34,151.13,151.04,20.2067]
[1729183056811,3.3089,151.12,151.09,3.3094]
[1729183057010,3.3089,151.12,151.04,20.2067]
[1729183057411,3.3089,151.12,151.09,3.3093]
[1729183057616,3.3089,151.12,151.04,20.2067]
[1729183057819,3.309,151.11,151.04,20.2067]
[1729183058720,5.34,151.13,151.04,20.2067]
[1729183058912,3.3088,151.12,151.04,20.2067]
[1729183059622,5.34,151.13,151.04,20.2067]
[1729183061018,15.9,151.11,151.06,3.3099]
[1729183061609,3.3101,151.06,151.04,2.861]
[1729183062525,19.2097,151.08,151.04,2.861]
[1729183062921,15.9,151.08,151.02,3.32307308]
[1729183063222,15.9,151.04,151.0,1.4473]
[1729183063424,15.9,151.04,151.01,3.3111]
[1729183063621,19.2098,151.08,151.0,1.4473]
[1729183063813,19.2098,151.08,151.0,6.7073]
[1729183063814,24.4698,151.08,151.0,6.7073]
[1729183064121,24.4698,151.08,151.04,3.3103]
[1729183064518,21.16,151.08,151.04,3.3103]
[1729183064723,3.3099,151.07,151.04,3.3103]
[1729183065029,3.3099,151.07,151.03,6.68167523]
[1729183065222,3.3099,151.07,151.03,3.3106]
[1729183065720,3.3099,151.07,151.03,6.69050861]
[1729183065917,3.3099,151.07,151.03,3.3106]
[1729183066313,8.5695,151.09,151.05,3.3102]
[1729183066527,3.3095,151.09,151.0,22.6073]
[1729183066825,24.4692,151.1,151.0,22.6073]
[1729183067513,19.2092,151.1,151.0,22.6073]
[1729183067718,19.2092,151.1,151.06,3.3099]
[1729183067915,15.9,151.1,151.06,3.3099]
[1729183068122,3.3094,151.09,151.06,3.3099]
[1729183069327,3.3098,151.08,151.04,6.60643241]
[1729183069530,15.9,151.08,151.0,22.6073]
[1729183070223,3.31,151.07,151.02,3.3108]
[1729183070420,15.9,151.06,151.02,6.59656852]
[1729183070827,19.2102,151.06,151.03,3.3107]
[1729183072933,3.3102,151.06,151.03,3.3107]
[1729183074935,3.3102,151.06,151.02,3.28576852]
[1729183075143,3.3102,151.06,151.04,3.3105]
[1729183075738,3.3102,151.06,151.02,3.3228488]
[1729183075930,15.9,151.05,151.0,1.4473]
[1729183076336,15.9,151.03,150.99,1.3561]